{"text_format":"3","workbook":"xlsx","n_sheets":1,"sheets":["Αρχείο καταγραφής αποστάσεων..."],"not_rendered":{"defined_names":6},"read":"whole","date_system":"1900"}

{"sheet":"Αρχείο καταγραφής αποστάσεων...","index":0,"n_rows":20,"n_cols":9,"rows_kept":20}
[null,"Αρχείο καταγραφής αποστάσεων και αναφορά εξόδων"]
[]
[null,"Όνομα υπαλλήλου",null,"Χρέωση ανά χιλιόμετρο",{"v":0.27,"d":"0.27 €"}]
[null,"Αναγνωριστικό υπαλλήλου",null,"Για την περίοδο",{"$f":"\"Από \"&TEXT(MIN(B9:B19),\"η/μ/εε\")&\" Έως \"&TEXT(MAX(B9:B19),\"η/μ/εε\")","v":{"$error":"#VALUE!"}}]
[null,"Περιγραφή οχήματος",null,"Συνολική απόσταση σε χιλιόμετρα",{"$f":"Συνολική_απόσταση_σε_χιλιόμετρα","v":10}]
[null,"Εξουσιοδότηση από",null,"Συνολική αποζημίωση ",{"$f":"Συνολική_αποζημίωση","v":{"v":2.7,"d":"2.70 €"}}]
[]
[null,"Ημερομηνία","Σημείο εκκίνησης","Προορισμός","Περιγραφή/σημειώσεις","Αρχική ένδειξη οδόμετρου","Τελική ένδειξη οδόμετρου","Απόσταση σε χιλιόμετρα","Αποζημίωση "]
[null,{"$f":"TODAY()","v":"2017-08-03"},"Οικιακό γραφείο","Northwind Traders","Συνάντηση με πελάτη",36098,36103,{"$f":"IFERROR(IF(OR(ISBLANK(F9),ISBLANK(G9)),0,G9-F9), \"\")","v":5},{"$f":"IFERROR(H9*$E$3, \"\")","v":{"v":1.35,"d":"1.35 €"}}]
[null,{"$f":"TODAY()+1","v":"2017-08-04"},"Northwind Traders","Οικιακό γραφείο","Συνάντηση με πελάτη",36103,36108,{"$f":"IFERROR(IF(OR(ISBLANK(F10),ISBLANK(G10)),0,G10-F10), \"\")","v":5},{"$f":"IFERROR(H10*$E$3, \"\")","v":{"v":1.35,"d":"1.35 €"}}]
[{"$nulls":7},0,{"v":0,"d":"0.00 €"}]
[{"$nulls":7},0,{"v":0,"d":"0.00 €"}]
[{"$nulls":7},0,{"v":0,"d":"0.00 €"}]
[{"$nulls":7},0,{"v":0,"d":"0.00 €"}]
[{"$nulls":7},0,{"v":0,"d":"0.00 €"}]
[{"$nulls":7},0,{"v":0,"d":"0.00 €"}]
[{"$nulls":7},0,{"v":0,"d":"0.00 €"}]
[{"$nulls":7},0,{"v":0,"d":"0.00 €"}]
[{"$nulls":7},0,{"v":0,"d":"0.00 €"}]
[{"$nulls":6},"Σύνολα",{"$f":"SUBTOTAL(109,Έξοδο[Απόσταση σε χιλιόμετρα])","v":10},{"$f":"SUBTOTAL(109,Έξοδο[[Αποζημίωση ]])","v":{"v":2.7,"d":"2.70 €"}}]